Cogmind - Beta 13 @@@ ROGUE MODE // 2024.04.30 @ 19:53:09 Player: b00n1n Result: Destroyed by D-53 Grenadier with Mini Grenade Launcher Performance ------------- Evolutions (0) 0 Regions Visited (2) 400 Robots Destroyed (20) 100 Value Destroyed (251) 251 Prototype IDs (3) 60 Alien Tech Used (0) 0 Bonus (0) 0 TOTAL SCORE: 811 Bonus ------- None Cogmind --------- Core Integrity 0/250 Matter 300/300 Energy 100/100 System Corruption 6% Temperature Cool (0) Movement Walking (120) Location -10/Mines Parts ------- > --- POWER (1) -------- (None) > --- PROPULSION (2) --- Aluminum Leg > --- UTILITY (2) ------ Medium Storage Unit > --- WEAPON (2) ------- (None) > --- INVENTORY (10) --- Light Ion Engine Light Ion Engine Aluminum Leg Heat Sink Visual Processing Unit Sensor Array Medium Laser Beam Cannon Mining Claw Peak State ------------ > --- POWER ------------ Light Ion Engine > --- PROPULSION ------- Aluminum Leg Aluminum Leg > --- UTILITY ---------- Medium Storage Unit Improved Terrain Scanner > --- WEAPON ----------- Medium Laser Assault Rifle > --- INVENTORY -------- Light Ion Engine Light Ion Engine Light Treads Light Treads Small Storage Unit EM Pulse Gun Medium Laser Medium Laser Medium Laser Medium Laser [Rating: 10] Favorites ----------- Power Light Ion Engine Engine Light Ion Engine Propulsion Aluminum Leg Leg Aluminum Leg Utility Medium Storage Unit Device Improved Terrain Scanner Storage Medium Storage Unit Processor Signal Interpreter Weapon Medium Laser Energy Gun Medium Laser Energy Cannon Beam Cannon Ballistic Gun Assault Rifle Launcher Grenade Launcher Slashing Weapon Mining Claw Build | -11 -10 -10 ------- Run | Yrd Mat Min Slots Evolved . | . . . Power . | . . . Propulsion . | . . . Utility . | . . . Weapon . | . . . Parts Attached 24 | 8 10 6 Power 4 | 2 2 . Engine 4 | 2 2 . Core . | . . . Reactor . | . . . Propulsion 4 | 2 1 1 Treads . | . . . Leg 4 | 2 1 1 Wheel . | . . . Hover . | . . . Flight . | . . . Utility 6 | 2 4 . Device 2 | 1 1 . Storage 3 | 1 2 . Processor 1 | . 1 . Hackware . | . . . Protection . | . . . Artifact . | . . . Weapon 10 | 2 3 5 Energy Gun 4 | 1 2 1 Energy Cannon 1 | . . 1 Ballistic Gun 2 | 1 1 . Ballistic Cannon . | . . . Launcher 2 | . . 2 Special Weapon . | . . . Impact Weapon . | . . . Slashing Weapon 1 | . . 1 Piercing Weapon . | . . . Special Melee Weapon . | . . . Unidentified Prototypes . | . . . Parts Lost 6 | . . 6 Power 1 | . . 1 Propulsion 2 | . . 2 Utility 1 | . . 1 Weapon 2 | . . 2 Highest Loss Streak 6 | . . 6 To Critical Strikes . | . . . Average Slot Usage (%) 99 | . 99 99 Engine 14 | . 14 14 Leg 27 | . 27 28 Device 4 | . 6 . Storage 14 | . 14 14 Processor 9 | . 7 14 Energy Gun 20 | . 22 15 Energy Cannon 1 | . . 4 Ballistic Gun 3 | . 5 . Launcher 2 | . . 7 Naked Turns . | . . . Heaviest Build 19 | 12 18 19 Greatest Support 20 | 20 20 20 Greatest Overweight (x) 1 | . 1 . Average Overweight (x) . | . . . Largest Inventory Capacity 10 | 8 10 10 Average Capacity 9 | 7 9 10 Most Carried 10 | 8 10 10 Average Carried 9 | 6 9 9 Final Capacity 10 | 8 10 10 Final Carried 10 | 8 10 9 Class Distribution -------------------- 100% | Mutant Dominant Class ---------------- Mutant | -10/Materials Mutant | -10/Mines Resources | -11 -10 -10 ----------- Run | Yrd Mat Min Matter Collected 507 | 265 117 125 Remotely . | . . . Salvage Created 361 | 99 146 116 Parts 34 | 4 12 18 Haulers Intercepted . | . . . Recyclers Shooed . | . . . Parts Field Recycled . | . . . Retrieved Matter . | . . . Parts Self-Destructed . | . . . Prevented . | . . . Kills | -11 -10 -10 ------- Run | Yrd Mat Min Combat Hostiles Destroyed 12 | . 5 7 Guns 11 | . 5 6 AOE 1 | . . 1 Classes Destroyed 7 | 2 3 2 Worker 2 | . . 2 Builder 1 | . . 1 Tunneler 2 | 1 . 1 Recycler 1 | 1 . . Watcher 2 | . 2 . Swarmer 9 | . 3 6 Grunt 3 | . 2 1 Best Kill Streak 5 | 1 3 5 Combat Bots Only 3 | . 3 3 Max Kills in Single Turn 4 | 1 1 4 Gunslinging 1 | . . 1 Exploded 1 | . . 1 Melee . | . . . Uniques/NPCs Destroyed . | . . . Combat | -11 -10 -10 -------- Run | Yrd Mat Min Hostile Shots Fired 54 | . 26 28 Missed 11 | . 6 5 Damage Taken 882 | . 210 672 Core 274 | . 65 209 Absorbed by Shields . | . . . Core Remaining (%) 100 | 100 . . Volleys Fired 29 | 4 13 12 Largest 2 | 2 2 2 Hottest 100 | 60 100 100 Shots Fired 58 | 8 26 24 Gun 50 | 8 26 16 Cannon . | . . . Launcher 8 | . . 8 Special . | . . . Kinetic 4 | 4 . . Thermal 46 | 4 26 16 Explosive 8 | . . 8 Electromagnetic . | . . . Robot Hit Streak 12 | 7 12 9 Robot Miss Streak 3 | . 1 3 Penetration Max . | . . . Secondary Targets 1 | . . 1 Max Gunslinging Chain 1 | . . 1 Shots Hit Robots 44 | 7 20 17 Core Hits 31 | 3 9 19 Critical Kills . | . . . Critical Parts Destroyed . | . . . Critical Strikes 7 | . 4 3 Burn 7 | . 4 3 Melee Attacks . | . . . Impact . | . . . Slashing . | . . . Piercing . | . . . Sneak Attacks . | . . . Combat Hostiles . | . . . Follow-up Attacks . | . . . Damage Inflicted 990 | 85 257 648 Guns 483 | 85 248 150 Cannons . | . . . Explosions 497 | . . 497 Melee . | . . . Ramming 10 | . 9 1 Kinetic 41 | 41 . . Thermal 442 | 44 248 150 Explosive 497 | . . 497 Electromagnetic . | . . . Impact . | . . . Slashing . | . . . Piercing . | . . . Highest Corruption 6 | . . 6 Average Corruption 6 | . . 6 Corruption Purged . | . . . Corruption Blocked . | . . . Overload Shots . | . . . Overflow Damage 9 | . . 9 Projectiles . | . . . Explosions 9 | . . 9 Melee . | . . . Knockbacks . | . . . Impact . | . . . Kinetic . | . . . Secondary . | . . . Self-Inflicted Damage . | . . . Shots . | . . . Rammed . | . . . Targets Rammed 4 | . 3 1 Kicked 4 | . 3 1 Crushed . | . . . Highest Temperature 234 | . 225 234 Average Temperature 85 | . 87 81 Received Heat Transfer 81 | . 48 33 Effects 2 | . . 2 Interference 2 | . . 2 Siege Activations . | . . . Robots Corrupted . | . . . Combat Hostiles . | . . . Parts Fried . | . . . Impact Corruptions . | . . . Robots Melted . | . . . Combat Hostiles . | . . . Parts Melted 5 | . 2 3 Heat Transferred 1802 | 100 1036 666 Parts Sabotaged . | . . . Parts Stolen . | . . . Parts Stripped . | . . . Power Chain Reactions . | . . . Alert | -11 -10 -10 ------- Run | Yrd Mat Min Peak Influence 306 | 10 211 306 Initial 82 | . 6 82 Average 106 | 3 74 234 Maximum Alert Level 1 | . 1 1 Low Security (%) 72 | 100 96 9 Level 1 27 | . 3 90 Level 2 . | . . . Level 3 . | . . . Level 4 . | . . . Level 5 . | . . . High Security . | . . . Max Security . | . . . Squads Dispatched 1 | . 1 . Investigation . | . . . Extermination . | . . . Reinforcement 1 | . 1 . Assault . | . . . Garrison . | . . . Intercept . | . . . Searches Triggered . | . . . Construction Impeded . | . . . Haulers Reinforced . | . . . Active Scanning Responses . | . . . Cargo Convoy Interrupts . | . . . Stealth | -11 -10 -10 --------- Run | Yrd Mat Min Distress Signals 1 | . . 1 Communications Jammed . | . . . Distress Signals . | . . . Times Spotted 28 | . 14 14 Peak Tracking Total 7 | . 3 7 Tactical Retreats 4 | . 3 1 Traps | -11 -10 -10 ------- Run | Yrd Mat Min Traps Triggered 2 | . 2 . Indirectly . | . . . Trap Hack Attempts . | . . . Triggered . | . . . Disarmed . | . . . Reprogrammed . | . . . Reused . | . . . Traps Extracted . | . . . Installed . | . . . Triggered . | . . . Machines | -11 -10 -10 ---------- Run | Yrd Mat Min Machines Disabled . | . . . Max in Single Turn . | . . . Machines Repaired . | . . . Machines Dismantled . | . . . Machines Sabotaged . | . . . Overloaded Fab Kills . | . . . Hacking | -11 -10 -10 --------- Run | Yrd Mat Min Machines Accessed 6 | . 6 . Terminals 6 | . 6 . Fabricators . | . . . Repair Stations . | . . . Recycling Units . | . . . Scanalyzers . | . . . Garrison Access . | . . . Total Hacks 25 | . 25 . Successful 15 | . 15 . Failed 10 | . 10 . Catastrophic 1 | . 1 . Database Lockouts . | . . . Manual 3 | . 3 . Terminals 25 | . 25 . Fabricators . | . . . Repair Stations . | . . . Recycling Units . | . . . Scanalyzers . | . . . Garrison Access . | . . . Terminal Hacks 15 | . 15 . Robot Analysis 1 | . 1 . Prototype ID Bank 2 | . 2 . Branch Access Points 1 | . 1 . Alert Level 3 | . 3 . Dispatch Records 3 | . 3 . Maintenance Status 1 | . 1 . Reinforcement Status 1 | . 1 . Zone Layout 3 | . 3 . Fabricator Hacks . | . . . Repair Station Hacks . | . . . Recycling Unit Hacks . | . . . Scanalyzer . | . . . Garrison Access Hacks . | . . . Unauthorized Hacks . | . . . Terminals . | . . . Fabricators . | . . . Repair Stations . | . . . Recycling Units . | . . . Scanalyzers . | . . . Garrison Access . | . . . Data Cores Recovered . | . . . Used . | . . . Hacking Detections 6 | . 6 . Full Trace Events . | . . . Feedback Events . | . . . Feedback Blocked . | . . . Robot Schematics Acquired . | . . . Robots Built . | . . . Authchips . | . . . Time . | . . . Total Robot Build Rating . | . . . Part Schematics Acquired . | . . . Parts Built . | . . . Authchips . | . . . Time . | . . . Total Part Build Rating . | . . . Parts Repaired . | . . . Time . | . . . Parts Recycled . | . . . Recycled Matter . | . . . Retrieved Matter . | . . . Retrieved Components . | . . . Parts Scanalyzed . | . . . Part Schematics Acquired . | . . . Parts Damaged . | . . . Bothacking | -11 -10 -10 ------------ Run | Yrd Mat Min Used RIF Installer . | . . . Robots Hacked . | . . . Non-combat . | . . . Combat . | . . . Robot Hacks Applied . | . . . Relay Couplers Released . | . . . Fabnet Peak Effective % . | . . . Robots Rewired . | . . . Allies Hacked . | . . . Hacks Repelled . | . . . Allies | -11 -10 -10 -------- Run | Yrd Mat Min Total Allies . | . . . Largest Group . | . . . Highest-Rated Group . | . . . Highest-Rated Ally . | . . . Total Orders . | . . . Ally Attacks . | . . . Total Damage . | . . . Kills . | . . . Allies Corrupted . | . . . Allies Melted . | . . . Intel | -11 -10 -10 ------- Run | Yrd Mat Min Robot Analysis Total 1 | . 1 . Derelict Logs Recovered 2 | . . 2 Drone Launches . | . . . Drone Recoveries . | . . . Exploration | -11 -10 -10 ------------- Run | Yrd Mat Min Turns Passed 1255 | 207 700 348 Spaces Moved 810 | 142 430 238 Core 12 | 12 . . Treads . | . . . Legs 798 | 130 430 238 Wheels . | . . . Hover . | . . . Flight . | . . . Fastest Speed 50 | 50 120 120 Average Speed 119 | 114 120 120 Slowest Speed 190 | 120 190 120 Overloaded Moves . | . . . Propulsion Burnouts . | . . . Robots Hopped . | . . . Cave-ins Triggered 1 | . . 1 Exploration Rate (%) 35 | 9 58 39 Regions Visited 2 Branch Regions 1 Pre-discovered Areas 3 | . . 3 Known Exits Taken 1 | . 1 . Unknown Exits Taken 1 | 1 . . Scrap Searched 1 | . . 1 Spaces Dug . | . . . Terrain Destroyed 36 | . . 36 Melee . | . . . Projectile . | . . . AOE 36 | . . 36 Terrain Rammed . | . . . Walls Destroyed . | . . . Machines Disabled . | . . . Actions | -11 -10 -10 --------- Run | Yrd Mat Min Total 1040 | 175 589 276 Wait 137 | 14 108 15 Move 808 | 141 429 238 Hop . | . . . Pick Up 19 | 7 12 . Fast Attach 15 | 8 5 2 Attach 1 | . . 1 Detach 2 | 1 . 1 Swap 8 | . 5 3 Drop 17 | . 14 3 Fire 29 | 4 13 12 Melee . | . . . Ram . | . . . Kick 4 | . 3 1 Crush . | . . . Escape Stasis . | . . . Rewire . | . . . Trap . | . . . Miscellaneous . | . . . Route ------- -11/Scrapyard -10/Materials (discovered 5 exits: *Mat x2 / *Min x2 / [Sub]) -10/Mines (discovered 1 exit: *Mat) History --------- Turn | Location | Event 7 | -11/Scrapyard | Discovered new exit (range 16) 208 | -11/Scrapyard | Entered Materials 208 | -10/Materials | Discovered new exit (range 7) 237 | -10/Materials | Identified exit to Mines 311 | -10/Materials | Build established: Mutant 446 | -10/Materials | Discovered new exit (range 5) 493 | -10/Materials | Discovered new exit (range 13) 801 | -10/Materials | Discovered new exit (range 16) 839 | -10/Materials | Identified exit to Materials 908 | -10/Materials | Entered Mines 1062 | -10/Mines | Discovered exit to Materials (range 3) 1072 | -10/Mines | Learned location of Storage (-8) 1216 | -10/Mines | Assembled infested the area 1221 | -10/Mines | Assisted by a Guerilla fighting off Assembled 1252 | -10/Mines | Crushed by falling debris 1252 | -10/Mines | Core integrity fell below 50% 1253 | -10/Mines | Core integrity fell below 20% 1256 | -10/Mines | Destroyed by D-53 Grenadier with Mini Grenade Launcher Last Messages --------------- 01245_ as-61025 destroyed. 01245_ as-36246 destroyed. 01245_ as-86281 destroyed. 01247_ Acquired 35 matter. 01247_ as-80689 destroyed. 01251_ The unstable cave ceiling collapses. 01252_ Crushed by falling debris. 01252_ Signal Interpreter destroyed. 01252_ System corrupted by crushing effect (+2). 01252_ Aluminum Leg destroyed. 01252_ System corrupted by crushing effect (+4). 01253_ Grenade Launcher destroyed. 01253_ Laser Drill disabled. 01253_ U-05 Engineer lays Concrete. 01254_ The unstable cave ceiling collapses. 01254_ Aluminum Leg destroyed. 01254_ Lgt. Ion Engine destroyed. 01254_ U-05 Engineer lays Concrete. 01255_ T-07 Excavator destroyed. 01255_ K-01 Serf collects debris. Map ----- +----------------------------------------------------+ | ??????????????????????????????????? ??????????? | | ??????????????????????????????????? ?????????? | | ??????????????????????????????????? ????????? | | ??????????????????? ?????????????? ????????? | | ??????????????????# ????????????? ?????????? | | ??????????????????# ?????????????# #?????????? | | ??????????????????# ?????????????# #?????????? | | ??????????????????# #???????????## #?????????? | | ??????????????????# ##????????## ###???????? | | ??????????????????# ###??????# ##??????? | | ??????????????????# ##?????# #??????? | | ??????????????????# #????## #??????? | | ?????????????????## #???## #??????? | | ????????????????## ##### #??????? | | ????????????????# ### #??????? | | ????????????????# # = #??????? | | ????###??????????# ##??????? | | ???## #??????????### ## # ## ##???????? | | ???# ##??????????# ###### #????????? | | ???# ##?????#####u ##### # # #####????? | | ????# ## # ## ## !# ## ##???? | | ?????# ## ##### ## # # ##??? | | ?????# # k ##?? | | ????## dd #?? | | ????# # ##### #?? | | ????# % @[ # #??## #?? | | ????## ## # *% ##[#?## #?? | | ?????## ? = # #?# ##?? | | ??????# ## # # ## #=#?# ##??? | | ?????## #??# """ "" ## #??# #?# < ##???? | | ?????# ##??# """ """ #?# #??# ### ##????? | | ????## #???# """ """k #?# #??#[ #?????? | | ????# ##???# #?# #??# #### #?????? | | ???# ##????# """ """ ### #?##+#??# ####??? | | ?? ! ##?????# """ """ %% ### ##?# #??? | | ? !%= #??????# """ """ ####### #?# #??? | | #??????# #????# #?#### ##?? | | ##??????#### ######???# ##????# #?? | | #######??????????# #???????# ##????# #? | | ?????????????????# #???????# #?????# #? | | ?????????????????# #???????#####??????# #? | | ?????????????????# #??????????????????## #? | | ?????????????????# ##???????????????????## #? | | ?????????????????###?????????????????????## ##? | | ???????????????????????????????????????????###?? | | ???????????????????????????????????????????????? | | ???????????????????????????????????????????????? | | ???????????????????????????????????????????????? | | ???????????????????????????????????????????????? | | ???????????????????????????????????????????????? | +----------------------------------------------------+ Best States ------------- Heat Dissipation 25 Energy Generation 10 Energy Capacity 125 Matter Stores 300 Matter Capacity 300 Sight Range 16 Terrain Scan Range 16 Terrain Scan Density 10 Evasion (%) 55 Item Schematics ----------------- None Robot Schematics ------------------ None Fabricated ------------ Nothing Alien Tech Used ----------------- None Achievements -------------- None Challenges ------------ None Game ------ Seed SpreadGrenadePenetrator Manual? 0 Play Time 00:22:46 Cumulative 52.6 hours Start 2024.04.30 @ 19:27:44 End 2024.04.30 @ 19:53:09 Sessions 3 Manual Loads 0 Difficulty Rogue Special Mode None Game No. 25 Rogue 25 Adventurer 0 Explorer 0 Win Type - Total 0 Types 0/0/0/0/0/0/0/0/0 Lore% 31 Gallery% 46 Achievement% 27 Wizard Run 0 Options --------- Layout 1 ASCII 1 Keyboard 1 Movement Vi Keybinds 0 Fullscreen 1 Font 24/Smallcaps Map View 50x35 Zoom Use 14% Tactical HUD 1 Map Filters NONE Filters NONE Steam 1 RUN: 61405209-197e-463c-b2d5-e2bffce05257